[Event "Titled Tuesday Blitz March 21 Late 2023"]
[White "Ashraf, Artin"]
[Black "Papasimakopoulos, Alexandros"]
[WhiteFideId "22514805"]
[BlackFideId "4244125"]
[WhiteElo "2188"]
[BlackElo "2359"]
[Result "1-0"]
[Round "11"]
[TimeControl "180+2"]
[Date "2023.03.21"]
[WhiteClock "0:00:16"]
[BlackClock "0:00:04"]

1. Nf3 {[%clk 0:02:21]}  f5 {[%clk 0:02:56]} 2. d3 {[%clk 0:02:18]}  d6 {[%clk 0:02:55]} 3. g3 {[%clk 0:02:14]}  Nc6 {[%clk 0:02:56]} 4. Bg2 {[%clk 0:02:14]}  Nf6 {[%clk 0:02:56]} 5. O-O {[%clk 0:02:13]}  g6 {[%clk 0:02:56]} 6. c4 {[%clk 0:02:13]}  Bg7 {[%clk 0:02:56]} 7. Nc3 {[%clk 0:02:13]}  a5 {[%clk 0:02:56]} 8. d4 {[%clk 0:02:12]}  O-O {[%clk 0:02:54]} 9. d5 {[%clk 0:02:12]}  Nb4 {[%clk 0:02:50]} 10. Nd4 {[%clk 0:02:11]}  Na6 {[%clk 0:02:49]} 11. b3 {[%clk 0:02:08]}  Nc5 {[%clk 0:02:48]} 12. Bb2 {[%clk 0:02:07]}  e5 {[%clk 0:02:47]} 13. dxe6 {[%clk 0:02:06]}  c6 {[%clk 0:02:46]} 14. Qd2 {[%clk 0:01:52]}  Qe7 {[%clk 0:02:41]} 15. Rad1 {[%clk 0:01:49]}  Rd8 {[%clk 0:02:39]} 16. Bxc6 {[%clk 0:01:42]}  bxc6 {[%clk 0:02:09]} 17. Nxc6 {[%clk 0:01:43]}  Qe8 {[%clk 0:02:09]} 18. Nxd8 {[%clk 0:01:40]}  Qxd8 {[%clk 0:02:10]} 19. e7 {[%clk 0:01:22]}  Qd7 {[%clk 0:01:35]} 20. Nd5 {[%clk 0:01:04]}  Nfe4 {[%clk 0:01:35]} 21. Qc1 {[%clk 0:00:58]}  Bb7 {[%clk 0:01:30]} 22. Bxg7 {[%clk 0:00:55]}  Bxd5 {[%clk 0:01:25]} 23. Ba1 {[%clk 0:00:51]}  Bb7 {[%clk 0:01:14]} 24. Qb2 {[%clk 0:00:51]}  Qxe7 {[%clk 0:01:07]} 25. Qh8+ {[%clk 0:00:49]}  Kf7 {[%clk 0:01:07]} 26. Qxh7+ {[%clk 0:00:50]}  Ke8 {[%clk 0:01:06]} 27. Qxg6+ {[%clk 0:00:48]}  Qf7 {[%clk 0:01:07]} 28. Qxf7+ {[%clk 0:00:47]}  Kxf7 {[%clk 0:01:08]} 29. f3 {[%clk 0:00:48]}  Ke6 {[%clk 0:00:55]} 30. fxe4 {[%clk 0:00:46]}  Bxe4 {[%clk 0:00:54]} 31. Bd4 {[%clk 0:00:43]}  a4 {[%clk 0:00:44]} 32. b4 {[%clk 0:00:33]}  Nb7 {[%clk 0:00:38]} 33. a3 {[%clk 0:00:31]}  Nd8 {[%clk 0:00:31]} 34. Rc1 {[%clk 0:00:29]}  Rc8 {[%clk 0:00:30]} 35. b5 {[%clk 0:00:28]}  Nb7 {[%clk 0:00:30]} 36. Rf4 {[%clk 0:00:27]}  Na5 {[%clk 0:00:29]} 37. Rc3 {[%clk 0:00:19]}  Nb3 {[%clk 0:00:24]} 38. e3 {[%clk 0:00:17]}  Na5 {[%clk 0:00:23]} 39. g4 {[%clk 0:00:16]}  Nb3 {[%clk 0:00:15]} 40. g5 {[%clk 0:00:16]}  Kf7 {[%clk 0:00:14]} 41. h4 {[%clk 0:00:15]}  Kg6 {[%clk 0:00:15]} 42. Kh2 {[%clk 0:00:13]}  Nd2 {[%clk 0:00:14]} 43. Kg3 {[%clk 0:00:13]}  Kh5 {[%clk 0:00:13]} 44. b6 {[%clk 0:00:13]}  Bb7 {[%clk 0:00:12]} 45. Rc1 {[%clk 0:00:12]}  Ne4+ {[%clk 0:00:12]} 46. Kh2 {[%clk 0:00:13]}  Rf8 {[%clk 0:00:12]} 47. Rb1 {[%clk 0:00:12]}  Nd2 {[%clk 0:00:11]} 48. Rb5 {[%clk 0:00:12]}  Be4 {[%clk 0:00:11]} 49. b7 {[%clk 0:00:11]}  Rb8 {[%clk 0:00:10]} 50. Rxe4 {[%clk 0:00:10]}  Nxe4 {[%clk 0:00:03]} 51. Ba7 {[%clk 0:00:10]}  Rxb7 {[%clk 0:00:02]} 52. Rxb7 {[%clk 0:00:11]}  Kxh4 {[%clk 0:00:01]} 53. g6 {[%clk 0:00:11]}  Kg5 {[%clk 0:00:02]} 54. g7 {[%clk 0:00:12]}  Nf6 {[%clk 0:00:03]} 55. Bd4 {[%clk 0:00:12]}  Kg6 {[%clk 0:00:03]} 56. Bxf6 {[%clk 0:00:11]}  Kxf6 {[%clk 0:00:04]} 57. g8=Q {[%clk 0:00:12]}  f4 {[%clk 0:00:05]} 58. Qf7+ {[%clk 0:00:12]}  Kg5 {[%clk 0:00:04]} 59. Qxf4+ {[%clk 0:00:13]}  Kh5 {[%clk 0:00:04]} 60. Rh7+ {[%clk 0:00:12]}  Kg6 {[%clk 0:00:05]} 61. Rh6+ {[%clk 0:00:13]}  Kg7 {[%clk 0:00:05]} 62. Qf6+ {[%clk 0:00:14]}  Kg8 {[%clk 0:00:06]} 63. Rg6+ {[%clk 0:00:14]}  Kh7 {[%clk 0:00:04]} 64. Rg7+ {[%clk 0:00:15]}  Kh8 {[%clk 0:00:04]} 65. Qh6# {[%clk 0:00:16]} 1-0


[Site "https://www.chess.com"]

[Event "Titled Tuesday Blitz March 21 Late 2023"]
[White "Pakleza, Zbigniew"]
[Black "Marjanovic, Annamaria"]
[WhiteFideId "1119290"]
[BlackFideId "750930"]
[WhiteElo "2410"]
[BlackElo "2212"]
[Result "1-0"]
[Round "11"]
[TimeControl "180+2"]
[Date "2023.03.21"]
[WhiteClock "0:00:20"]
[BlackClock "0:00:18"]

1. d4 {[%clk 0:03:00]}  d5 {[%clk 0:02:56]} 2. Bf4 {[%clk 0:03:00]}  Nf6 {[%clk 0:02:56]} 3. e3 {[%clk 0:03:00]}  c5 {[%clk 0:02:55]} 4. c3 {[%clk 0:03:01]}  e6 {[%clk 0:02:52]} 5. Nd2 {[%clk 0:03:01]}  Bd6 {[%clk 0:02:51]} 6. Bg3 {[%clk 0:03:01]}  O-O {[%clk 0:02:50]} 7. Ngf3 {[%clk 0:03:00]}  Nc6 {[%clk 0:02:48]} 8. Bd3 {[%clk 0:02:59]}  c4 {[%clk 0:02:45]} 9. Bc2 {[%clk 0:02:58]}  b5 {[%clk 0:02:44]} 10. a3 {[%clk 0:02:59]}  a5 {[%clk 0:02:44]} 11. e4 {[%clk 0:02:56]}  dxe4 {[%clk 0:02:37]} 12. Nxe4 {[%clk 0:02:57]}  Nxe4 {[%clk 0:02:25]} 13. Bxe4 {[%clk 0:02:55]}  Bb7 {[%clk 0:02:26]} 14. Qe2 {[%clk 0:02:49]}  Re8 {[%clk 0:02:19]} 15. O-O {[%clk 0:02:46]}  Rb8 {[%clk 0:02:14]} 16. Rfd1 {[%clk 0:02:38]}  Bxg3 {[%clk 0:02:11]} 17. hxg3 {[%clk 0:02:37]}  Qf6 {[%clk 0:02:07]} 18. a4 {[%clk 0:02:32]}  bxa4 {[%clk 0:01:16]} 19. Qxc4 {[%clk 0:02:27]}  Rec8 {[%clk 0:01:13]} 20. Qxa4 {[%clk 0:02:24]}  Ne7 {[%clk 0:01:04]} 21. Bxb7 {[%clk 0:02:11]}  Rxb7 {[%clk 0:01:05]} 22. Rd2 {[%clk 0:02:10]}  Rcb8 {[%clk 0:01:02]} 23. Qxa5 {[%clk 0:02:07]}  h6 {[%clk 0:00:57]} 24. Ne5 {[%clk 0:01:25]}  Nf5 {[%clk 0:00:32]} 25. b4 {[%clk 0:01:08]}  Nd6 {[%clk 0:00:32]} 26. Rc2 {[%clk 0:00:56]}  Qf5 {[%clk 0:00:27]} 27. Rac1 {[%clk 0:00:44]}  Nb5 {[%clk 0:00:20]} 28. Nc6 {[%clk 0:00:29]}  Rc8 {[%clk 0:00:20]} 29. Qa6 {[%clk 0:00:29]}  Rbc7 {[%clk 0:00:19]} 30. Qxc8+ {[%clk 0:00:27]}  Rxc8 {[%clk 0:00:18]} 31. Ne7+ {[%clk 0:00:28]}  Kf8 {[%clk 0:00:18]} 32. Nxf5 {[%clk 0:00:29]}  exf5 {[%clk 0:00:18]} 33. d5 {[%clk 0:00:27]}  Ke7 {[%clk 0:00:18]} 34. c4 {[%clk 0:00:27]}  Nd4 {[%clk 0:00:18]} 35. Rd2 {[%clk 0:00:27]}  Nb3 {[%clk 0:00:18]} 36. Re1+ {[%clk 0:00:22]}  Kd6 {[%clk 0:00:18]} 37. Rd3 {[%clk 0:00:20]} 1-0


[Site "https://www.chess.com"]

[Event "Titled Tuesday Blitz March 21 Late 2023"]
[White "Poliakova, Varvara"]
[Black "Holt, Conrad"]
[WhiteFideId "13518313"]
[BlackFideId "2034387"]
[WhiteElo "2075"]
[BlackElo "2592"]
[Result "1-0"]
[Round "11"]
[TimeControl "180+2"]
[Date "2023.03.21"]
[WhiteClock "0:00:41"]
[BlackClock "0:00:06"]

1. e4 {[%clk 0:02:53]}  e6 {[%clk 0:02:59]} 2. d4 {[%clk 0:02:53]}  d5 {[%clk 0:03:00]} 3. e5 {[%clk 0:02:54]}  c5 {[%clk 0:03:00]} 4. c3 {[%clk 0:02:54]}  Nc6 {[%clk 0:03:00]} 5. a3 {[%clk 0:02:54]}  Bd7 {[%clk 0:03:00]} 6. Nf3 {[%clk 0:02:53]}  f6 {[%clk 0:03:00]} 7. Be2 {[%clk 0:02:51]}  Qc7 {[%clk 0:02:56]} 8. Bf4 {[%clk 0:02:48]}  Nge7 {[%clk 0:02:55]} 9. h4 {[%clk 0:02:44]}  Ng6 {[%clk 0:02:47]} 10. Bh2 {[%clk 0:02:44]}  fxe5 {[%clk 0:02:44]} 11. dxe5 {[%clk 0:02:41]}  Ngxe5 {[%clk 0:02:42]} 12. Nxe5 {[%clk 0:02:35]}  Nxe5 {[%clk 0:02:42]} 13. c4 {[%clk 0:02:34]}  d4 {[%clk 0:02:29]} 14. Nd2 {[%clk 0:02:32]}  Bd6 {[%clk 0:02:28]} 15. Ne4 {[%clk 0:02:28]}  d3 {[%clk 0:02:09]} 16. Nxd6+ {[%clk 0:02:24]}  Qxd6 {[%clk 0:02:08]} 17. Bxe5 {[%clk 0:02:20]}  Qxe5 {[%clk 0:02:08]} 18. Qxd3 {[%clk 0:02:20]}  O-O-O {[%clk 0:02:03]} 19. O-O {[%clk 0:02:13]}  Bc6 {[%clk 0:02:01]} 20. Qe3 {[%clk 0:02:12]}  Qxe3 {[%clk 0:01:41]} 21. fxe3 {[%clk 0:02:13]}  Rd2 {[%clk 0:01:40]} 22. Bf3 {[%clk 0:02:11]}  Bxf3 {[%clk 0:01:20]} 23. Rxf3 {[%clk 0:02:12]}  Rhd8 {[%clk 0:01:19]} 24. Raf1 {[%clk 0:02:09]}  R8d7 {[%clk 0:01:11]} 25. R1f2 {[%clk 0:02:04]}  Kd8 {[%clk 0:00:53]} 26. Rf8+ {[%clk 0:01:57]}  Kc7 {[%clk 0:00:49]} 27. g4 {[%clk 0:01:55]}  Rd1+ {[%clk 0:00:43]} 28. Kg2 {[%clk 0:01:54]}  Rc1 {[%clk 0:00:38]} 29. R8f7 {[%clk 0:01:51]}  Rd1 {[%clk 0:00:29]} 30. g5 {[%clk 0:01:51]}  g6 {[%clk 0:00:25]} 31. b4 {[%clk 0:01:38]}  cxb4 {[%clk 0:00:20]} 32. axb4 {[%clk 0:01:39]}  b6 {[%clk 0:00:19]} 33. b5 {[%clk 0:01:38]}  Rxf7 {[%clk 0:00:08]} 34. Rxf7+ {[%clk 0:01:39]}  Rd7 {[%clk 0:00:08]} 35. Rf2 {[%clk 0:01:34]}  Kd6 {[%clk 0:00:08]} 36. Rd2+ {[%clk 0:01:32]}  Ke7 {[%clk 0:00:09]} 37. Ra2 {[%clk 0:01:28]}  Rc7 {[%clk 0:00:08]} 38. Ra4 {[%clk 0:01:25]}  Kd6 {[%clk 0:00:09]} 39. Kf3 {[%clk 0:01:24]}  Ke5 {[%clk 0:00:09]} 40. Kf2 {[%clk 0:01:10]}  Rf7+ {[%clk 0:00:10]} 41. Ke2 {[%clk 0:01:09]}  Kf5 {[%clk 0:00:10]} 42. c5 {[%clk 0:01:06]}  Ke5 {[%clk 0:00:09]} 43. c6 {[%clk 0:01:05]}  Kd5 {[%clk 0:00:08]} 44. Rd4+ {[%clk 0:01:02]}  Kc5 {[%clk 0:00:07]} 45. Rd7 {[%clk 0:01:03]}  Rf8 {[%clk 0:00:07]} 46. c7 {[%clk 0:01:02]}  Rc8 {[%clk 0:00:07]} 47. Rxh7 {[%clk 0:00:54]}  Kxb5 {[%clk 0:00:07]} 48. h5 {[%clk 0:00:54]}  Kc6 {[%clk 0:00:07]} 49. hxg6 {[%clk 0:00:52]}  Rg8 {[%clk 0:00:06]} 50. Rf7 {[%clk 0:00:43]}  Kb7 {[%clk 0:00:06]} 51. g7 {[%clk 0:00:41]} 1-0


[Site "https://www.chess.com"]

[Event "Titled Tuesday Blitz March 21 Late 2023"]
[White "Matinian, Nikita"]
[Black "Bruedigam, Martin"]
[WhiteFideId "24129100"]
[BlackFideId "24608033"]
[WhiteElo "2422"]
[BlackElo "2331"]
[Result "1-0"]
[Round "11"]
[TimeControl "180+2"]
[Date "2023.03.21"]
[WhiteClock "0:01:43"]
[BlackClock "0:00:58"]

1. e4 {[%clk 0:03:00]}  c6 {[%clk 0:02:58]} 2. d4 {[%clk 0:03:00]}  d5 {[%clk 0:02:59]} 3. e5 {[%clk 0:02:59]}  Bf5 {[%clk 0:02:59]} 4. Nf3 {[%clk 0:02:59]}  e6 {[%clk 0:02:59]} 5. Be2 {[%clk 0:03:00]}  Ne7 {[%clk 0:02:59]} 6. O-O {[%clk 0:02:59]}  Ng6 {[%clk 0:02:59]} 7. Be3 {[%clk 0:02:51]}  Nd7 {[%clk 0:02:59]} 8. Nbd2 {[%clk 0:02:47]}  h5 {[%clk 0:02:46]} 9. c4 {[%clk 0:02:42]}  h4 {[%clk 0:02:45]} 10. Qb3 {[%clk 0:02:37]}  b6 {[%clk 0:02:41]} 11. cxd5 {[%clk 0:02:36]}  cxd5 {[%clk 0:02:42]} 12. Bb5 {[%clk 0:02:35]}  Be7 {[%clk 0:02:32]} 13. Rac1 {[%clk 0:02:32]}  O-O {[%clk 0:02:30]} 14. Rfe1 {[%clk 0:02:28]}  h3 {[%clk 0:02:07]} 15. g3 {[%clk 0:02:26]}  Rc8 {[%clk 0:02:03]} 16. Rxc8 {[%clk 0:02:22]}  Qxc8 {[%clk 0:02:03]} 17. Bg5 {[%clk 0:02:14]}  Nb8 {[%clk 0:01:44]} 18. Bd3 {[%clk 0:02:04]}  Bxd3 {[%clk 0:01:39]} 19. Qxd3 {[%clk 0:02:05]}  Nc6 {[%clk 0:01:38]} 20. a3 {[%clk 0:02:04]}  Na5 {[%clk 0:01:36]} 21. Bxe7 {[%clk 0:02:03]}  Nxe7 {[%clk 0:01:37]} 22. Ng5 {[%clk 0:02:03]}  g6 {[%clk 0:01:33]} 23. g4 {[%clk 0:02:04]}  Kg7 {[%clk 0:01:32]} 24. Qxh3 {[%clk 0:01:56]}  Rh8 {[%clk 0:01:32]} 25. Qf3 {[%clk 0:01:56]}  Qf8 {[%clk 0:01:26]} 26. Rc1 {[%clk 0:01:48]}  Nac6 {[%clk 0:01:25]} 27. b4 {[%clk 0:01:48]}  Nxd4 {[%clk 0:01:17]} 28. Qf6+ {[%clk 0:01:46]}  Kg8 {[%clk 0:01:17]} 29. Rc7 {[%clk 0:01:44]}  Ndc6 {[%clk 0:01:03]} 30. b5 {[%clk 0:01:43]}  Qg7 {[%clk 0:00:58]} 31. bxc6 {[%clk 0:01:43]} 1-0


[Site "https://www.chess.com"]

[Event "Titled Tuesday Blitz March 21 Late 2023"]
[White "Yeletsky, Ivan"]
[Black "Jovic, Stanoje"]
[WhiteFideId "24180327"]
[BlackFideId "905020"]
[WhiteElo "2414"]
[BlackElo "2236"]
[Result "1-0"]
[Round "11"]
[TimeControl "180+2"]
[Date "2023.03.21"]
[WhiteClock "0:00:49"]
[BlackClock "0:00:19"]

1. d4 {[%clk 0:03:00]}  Nf6 {[%clk 0:02:59]} 2. c4 {[%clk 0:03:00]}  e6 {[%clk 0:02:58]} 3. Nc3 {[%clk 0:03:00]}  Bb4 {[%clk 0:02:58]} 4. a3 {[%clk 0:03:01]}  Bxc3+ {[%clk 0:02:57]} 5. bxc3 {[%clk 0:03:02]}  O-O {[%clk 0:02:56]} 6. f3 {[%clk 0:03:02]}  d5 {[%clk 0:02:55]} 7. cxd5 {[%clk 0:03:01]}  exd5 {[%clk 0:02:55]} 8. e3 {[%clk 0:03:01]}  Bf5 {[%clk 0:02:55]} 9. Ne2 {[%clk 0:02:59]}  c5 {[%clk 0:02:53]} 10. g4 {[%clk 0:02:59]}  Bg6 {[%clk 0:02:53]} 11. Nf4 {[%clk 0:02:56]}  Nc6 {[%clk 0:02:50]} 12. h4 {[%clk 0:02:56]}  h5 {[%clk 0:02:48]} 13. g5 {[%clk 0:02:52]}  Ne8 {[%clk 0:02:43]} 14. Kf2 {[%clk 0:02:40]}  c4 {[%clk 0:02:38]} 15. Bh3 {[%clk 0:02:31]}  Na5 {[%clk 0:02:26]} 16. a4 {[%clk 0:02:30]}  Nb3 {[%clk 0:02:26]} 17. Ra2 {[%clk 0:02:31]}  Nc7 {[%clk 0:02:20]} 18. Ba3 {[%clk 0:02:31]}  Re8 {[%clk 0:02:16]} 19. Re1 {[%clk 0:02:30]}  Ne6 {[%clk 0:02:13]} 20. Ng2 {[%clk 0:01:49]}  Qa5 {[%clk 0:02:04]} 21. Bb4 {[%clk 0:01:45]}  Qc7 {[%clk 0:02:03]} 22. a5 {[%clk 0:01:45]}  a6 {[%clk 0:01:50]} 23. Rh1 {[%clk 0:01:23]}  b6 {[%clk 0:01:49]} 24. axb6 {[%clk 0:01:22]}  Qxb6 {[%clk 0:01:49]} 25. Kg1 {[%clk 0:01:17]}  a5 {[%clk 0:01:49]} 26. Ba3 {[%clk 0:01:18]}  a4 {[%clk 0:01:49]} 27. Re2 {[%clk 0:01:13]}  Bd3 {[%clk 0:01:44]} 28. Re1 {[%clk 0:01:14]}  Nexd4 {[%clk 0:01:33]} 29. exd4 {[%clk 0:01:12]}  Nxd4 {[%clk 0:01:26]} 30. cxd4 {[%clk 0:01:11]}  Qb3 {[%clk 0:01:18]} 31. Qc1 {[%clk 0:01:06]}  Be2 {[%clk 0:01:03]} 32. g6 {[%clk 0:00:58]}  fxg6 {[%clk 0:00:56]} 33. Nf4 {[%clk 0:00:57]}  Bxf3 {[%clk 0:00:52]} 34. Be6+ {[%clk 0:00:51]}  Kh7 {[%clk 0:00:45]} 35. Rh3 {[%clk 0:00:50]}  Qb6 {[%clk 0:00:19]} 36. Rxf3 {[%clk 0:00:50]}  Rxe6 {[%clk 0:00:19]} 37. Nxe6 {[%clk 0:00:49]}  Qxe6 {[%clk 0:00:19]} 38. Rxe6 {[%clk 0:00:49]} 1-0


[Site "https://www.chess.com"]

[Event "Titled Tuesday Blitz March 21 Late 2023"]
[White "Baskakov, Egor"]
[Black "Manukyan, Sargis V."]
[WhiteFideId "24197866"]
[BlackFideId "13303465"]
[WhiteElo "2212"]
[BlackElo "2236"]
[Result "1-0"]
[Round "11"]
[TimeControl "180+2"]
[Date "2023.03.21"]
[WhiteClock "0:01:45"]
[BlackClock "0:00:33"]

1. e4 {[%clk 0:03:00]}  e6 {[%clk 0:02:59]} 2. Nc3 {[%clk 0:03:00]}  d5 {[%clk 0:02:59]} 3. g3 {[%clk 0:03:01]}  d4 {[%clk 0:02:56]} 4. Nce2 {[%clk 0:03:01]}  c5 {[%clk 0:02:57]} 5. d3 {[%clk 0:03:01]}  Nc6 {[%clk 0:02:57]} 6. h3 {[%clk 0:03:02]}  Bd6 {[%clk 0:02:52]} 7. Bg2 {[%clk 0:03:02]}  Nge7 {[%clk 0:02:51]} 8. f4 {[%clk 0:03:03]}  f5 {[%clk 0:02:49]} 9. Nf3 {[%clk 0:03:01]}  O-O {[%clk 0:02:44]} 10. O-O {[%clk 0:03:02]}  e5 {[%clk 0:02:41]} 11. fxe5 {[%clk 0:03:01]}  Nxe5 {[%clk 0:02:40]} 12. Nxe5 {[%clk 0:03:01]}  Bxe5 {[%clk 0:02:41]} 13. Bf4 {[%clk 0:03:02]}  Qd6 {[%clk 0:02:34]} 14. Kh2 {[%clk 0:03:00]}  Ng6 {[%clk 0:02:32]} 15. Bxe5 {[%clk 0:02:59]}  Qxe5 {[%clk 0:02:26]} 16. Nf4 {[%clk 0:02:58]}  Nxf4 {[%clk 0:02:13]} 17. gxf4 {[%clk 0:02:55]}  Qc7 {[%clk 0:02:11]} 18. e5 {[%clk 0:02:56]}  Be6 {[%clk 0:02:11]} 19. Rg1 {[%clk 0:02:44]}  Rad8 {[%clk 0:02:06]} 20. Qh5 {[%clk 0:02:40]}  Qf7 {[%clk 0:01:55]} 21. Qh4 {[%clk 0:02:39]}  Rd7 {[%clk 0:01:55]} 22. Bf3 {[%clk 0:02:39]}  Qe7 {[%clk 0:01:49]} 23. Rg5 {[%clk 0:02:33]}  Rf7 {[%clk 0:01:25]} 24. Rag1 {[%clk 0:02:30]}  Qf8 {[%clk 0:01:16]} 25. Qh6 {[%clk 0:02:26]}  Rde7 {[%clk 0:01:01]} 26. Rh5 {[%clk 0:01:56]}  g6 {[%clk 0:00:56]} 27. Rxg6+ {[%clk 0:01:54]}  Rg7 {[%clk 0:00:50]} 28. Rxe6 {[%clk 0:01:53]}  Kh8 {[%clk 0:00:43]} 29. Rxe7 {[%clk 0:01:47]}  Qxe7 {[%clk 0:00:40]} 30. Qf6 {[%clk 0:01:45]}  Qe8 {[%clk 0:00:33]} 31. Rg5 {[%clk 0:01:45]} 1-0


[Site "https://www.chess.com"]

[Event "Titled Tuesday Blitz March 21 Late 2023"]
[White "cryptoguru02"]
[Black "Jessel, Stephen"]
[BlackFideId "628859"]
[WhiteElo "2523"]
[BlackElo "2268"]
[Result "1-0"]
[Round "11"]
[TimeControl "180+2"]
[Date "2023.03.21"]
[WhiteClock "0:00:45"]
[BlackClock "0:00:09"]

1. d4 {[%clk 0:03:00]}  a6 {[%clk 0:02:56]} 2. e4 {[%clk 0:03:00]}  e6 {[%clk 0:02:57]} 3. Bd3 {[%clk 0:02:58]}  d5 {[%clk 0:02:58]} 4. e5 {[%clk 0:02:55]}  Bd7 {[%clk 0:02:57]} 5. a4 {[%clk 0:02:53]}  c5 {[%clk 0:02:57]} 6. c3 {[%clk 0:02:53]}  Nc6 {[%clk 0:02:57]} 7. Ne2 {[%clk 0:02:49]}  Qb6 {[%clk 0:02:54]} 8. a5 {[%clk 0:02:43]}  Nxa5 {[%clk 0:02:42]} 9. dxc5 {[%clk 0:02:43]}  Bxc5 {[%clk 0:02:42]} 10. Rxa5 {[%clk 0:02:33]}  Bxf2+ {[%clk 0:02:22]} 11. Kf1 {[%clk 0:02:32]}  Bh4 {[%clk 0:02:09]} 12. g3 {[%clk 0:02:30]}  Qxa5 {[%clk 0:02:02]} 13. gxh4 {[%clk 0:02:29]}  O-O-O {[%clk 0:01:48]} 14. Rg1 {[%clk 0:02:23]}  f6 {[%clk 0:01:36]} 15. Bf4 {[%clk 0:02:15]}  g6 {[%clk 0:01:32]} 16. Nd2 {[%clk 0:02:10]}  Rf8 {[%clk 0:01:16]} 17. Ke1 {[%clk 0:02:05]}  Qb6 {[%clk 0:01:09]} 18. Qb3 {[%clk 0:01:53]}  Qa5 {[%clk 0:00:43]} 19. Qa3 {[%clk 0:01:47]}  Qxa3 {[%clk 0:00:39]} 20. bxa3 {[%clk 0:01:48]}  Be8 {[%clk 0:00:11]} 21. Nd4 {[%clk 0:01:46]}  Kd7 {[%clk 0:00:11]} 22. N2b3 {[%clk 0:01:42]}  Ke7 {[%clk 0:00:12]} 23. Nc5 {[%clk 0:01:34]}  Bf7 {[%clk 0:00:12]} 24. Rf1 {[%clk 0:01:30]}  h6 {[%clk 0:00:11]} 25. exf6+ {[%clk 0:01:21]}  Nxf6 {[%clk 0:00:11]} 26. Be5 {[%clk 0:01:21]}  Bg8 {[%clk 0:00:12]} 27. Bxg6 {[%clk 0:01:19]}  Bh7 {[%clk 0:00:09]} 28. Bxh7 {[%clk 0:01:14]}  Rxh7 {[%clk 0:00:09]} 29. Ncxe6 {[%clk 0:01:11]}  Rff7 {[%clk 0:00:09]} 30. Nf4 {[%clk 0:01:05]}  Kd7 {[%clk 0:00:03]} 31. Bxf6 {[%clk 0:00:44]}  Rxf6 {[%clk 0:00:03]} 32. Nxd5 {[%clk 0:00:43]}  Rxf1+ {[%clk 0:00:04]} 33. Kxf1 {[%clk 0:00:44]}  Rg7 {[%clk 0:00:02]} 34. Nf6+ {[%clk 0:00:40]}  Kd8 {[%clk 0:00:01]} 35. Ne6+ {[%clk 0:00:39]}  Ke7 {[%clk 0:00:02]} 36. Nxg7 {[%clk 0:00:40]}  Kxf6 {[%clk 0:00:02]} 37. Nh5+ {[%clk 0:00:40]}  Kf5 {[%clk 0:00:03]} 38. Ng3+ {[%clk 0:00:41]}  Ke5 {[%clk 0:00:03]} 39. Ke2 {[%clk 0:00:40]}  Kd5 {[%clk 0:00:03]} 40. Kd2 {[%clk 0:00:41]}  b5 {[%clk 0:00:04]} 41. Kd3 {[%clk 0:00:41]}  Ke5 {[%clk 0:00:04]} 42. h5 {[%clk 0:00:40]}  Kf4 {[%clk 0:00:04]} 43. Kd4 {[%clk 0:00:40]}  Kg4 {[%clk 0:00:03]} 44. Kc5 {[%clk 0:00:40]}  Kh3 {[%clk 0:00:03]} 45. Nf5 {[%clk 0:00:40]}  Kxh2 {[%clk 0:00:03]} 46. Nxh6 {[%clk 0:00:41]}  Kh3 {[%clk 0:00:04]} 47. Kb4 {[%clk 0:00:41]}  Kh4 {[%clk 0:00:04]} 48. Nf7 {[%clk 0:00:41]}  Kxh5 {[%clk 0:00:04]} 49. Nd6 {[%clk 0:00:41]}  Kg4 {[%clk 0:00:05]} 50. Ka5 {[%clk 0:00:42]}  Kf4 {[%clk 0:00:05]} 51. Kxa6 {[%clk 0:00:42]}  b4 {[%clk 0:00:06]} 52. axb4 {[%clk 0:00:42]}  Ke5 {[%clk 0:00:07]} 53. b5 {[%clk 0:00:42]}  Kxd6 {[%clk 0:00:07]} 54. b6 {[%clk 0:00:43]}  Kc6 {[%clk 0:00:07]} 55. b7 {[%clk 0:00:43]}  Kc7 {[%clk 0:00:08]} 56. Ka7 {[%clk 0:00:44]}  Kc6 {[%clk 0:00:08]} 57. b8=Q {[%clk 0:00:45]}  Kc5 {[%clk 0:00:09]} 58. Qb4+ {[%clk 0:00:45]}  Kc6 {[%clk 0:00:09]} 59. Qc4+ {[%clk 0:00:44]}  Kd7 {[%clk 0:00:09]} 60. Kb7 {[%clk 0:00:44]}  Ke7 {[%clk 0:00:09]} 61. Qd4 {[%clk 0:00:45]}  Ke6 {[%clk 0:00:09]} 62. Kc6 {[%clk 0:00:45]}  Kf5 {[%clk 0:00:09]} 63. Qe3 {[%clk 0:00:45]} 1-0


[Site "https://www.chess.com"]

[Event "Titled Tuesday Blitz March 21 Late 2023"]
[White "Quinones Garcia, Santiago"]
[Black "Filgueira, Hernan"]
[WhiteFideId "4408497"]
[BlackFideId "101770"]
[WhiteElo "2263"]
[BlackElo "2363"]
[Result "0-1"]
[Round "11"]
[TimeControl "180+2"]
[Date "2023.03.21"]
[WhiteClock "0:00:29"]
[BlackClock "0:00:24"]

1. d4 {[%clk 0:03:00]}  d5 {[%clk 0:02:51]} 2. c4 {[%clk 0:03:01]}  e6 {[%clk 0:02:50]} 3. Nc3 {[%clk 0:03:00]}  c6 {[%clk 0:02:50]} 4. cxd5 {[%clk 0:02:58]}  exd5 {[%clk 0:02:50]} 5. Nf3 {[%clk 0:02:58]}  Bf5 {[%clk 0:02:46]} 6. Bf4 {[%clk 0:02:58]}  Nd7 {[%clk 0:02:43]} 7. e3 {[%clk 0:02:58]}  Ngf6 {[%clk 0:02:43]} 8. Be2 {[%clk 0:02:58]}  Be7 {[%clk 0:02:42]} 9. h3 {[%clk 0:02:58]}  Qb6 {[%clk 0:02:40]} 10. Qd2 {[%clk 0:02:52]}  Bb4 {[%clk 0:02:38]} 11. O-O {[%clk 0:02:51]}  Ne4 {[%clk 0:02:35]} 12. Qc1 {[%clk 0:02:51]}  O-O {[%clk 0:02:29]} 13. Nxe4 {[%clk 0:02:50]}  Bxe4 {[%clk 0:02:27]} 14. a3 {[%clk 0:02:50]}  Be7 {[%clk 0:02:27]} 15. b4 {[%clk 0:02:51]}  a5 {[%clk 0:02:25]} 16. Qc3 {[%clk 0:02:49]}  axb4 {[%clk 0:02:24]} 17. axb4 {[%clk 0:02:47]}  Qxb4 {[%clk 0:02:23]} 18. Qxb4 {[%clk 0:02:23]}  Bxb4 {[%clk 0:02:21]} 19. Rab1 {[%clk 0:02:24]}  Bxb1 {[%clk 0:02:19]} 20. Rxb1 {[%clk 0:02:25]}  c5 {[%clk 0:01:47]} 21. dxc5 {[%clk 0:02:23]}  Bxc5 {[%clk 0:01:47]} 22. Rxb7 {[%clk 0:02:23]}  Nf6 {[%clk 0:01:47]} 23. Be5 {[%clk 0:02:18]}  Ne4 {[%clk 0:01:44]} 24. Bb5 {[%clk 0:02:05]}  Ra2 {[%clk 0:01:36]} 25. Bc6 {[%clk 0:02:05]}  Rxf2 {[%clk 0:01:26]} 26. Nd4 {[%clk 0:01:28]}  Rd2 {[%clk 0:01:10]} 27. Bxd5 {[%clk 0:01:26]}  Nc3 {[%clk 0:01:00]} 28. Bc4 {[%clk 0:01:19]}  Nd1 {[%clk 0:00:39]} 29. Kh1 {[%clk 0:01:01]}  Nxe3 {[%clk 0:00:37]} 30. Ne6 {[%clk 0:00:52]}  Nxc4 {[%clk 0:00:31]} 31. Nxf8 {[%clk 0:00:41]}  Bxf8 {[%clk 0:00:30]} 32. Bc3 {[%clk 0:00:38]}  Rd1+ {[%clk 0:00:27]} 33. Kh2 {[%clk 0:00:38]}  Bd6+ {[%clk 0:00:28]} 34. g3 {[%clk 0:00:39]}  h5 {[%clk 0:00:26]} 35. Rb5 {[%clk 0:00:29]}  h4 {[%clk 0:00:24]} 0-1


[Site "https://www.chess.com"]